[Event "*** Titled Tuesday 3|2 Blitz"]
[Site "Chess.com"]
[Date "2016.06.07"]
[Round "5"]
[White "Wolverine_master"]
[Black "MateusViageiro"]
[Result "0-1"]
[WhiteElo "2092"]
[BlackElo "2299"]
[TimeControl "180+2"]
[EndTime "12:04:53 PDT"]
[Termination "MateusViageiro won on time"]

1. e4 {[%clk 0:02:44.3]} 1... c5 {[%clk 0:02:59.9]} 2. Nf3 {[%clk 0:02:32.8]}
2... d6 {[%clk 0:02:58.5]} 3. d4 {[%clk 0:02:33.2]} 3... cxd4 {[%clk 0:02:58.4]}
4. Nxd4 {[%clk 0:02:34.2]} 4... Nf6 {[%clk 0:02:59.4]} 5. Nc3 {[%clk 0:02:35.2]}
5... a6 {[%clk 0:03:00]} 6. Be2 {[%clk 0:02:31.1]} 6... e5 {[%clk 0:03:00.8]} 7.
Nb3 {[%clk 0:02:31.6]} 7... Be7 {[%clk 0:03:01.9]} 8. O-O {[%clk 0:02:29.9]}
8... O-O {[%clk 0:03:02.7]} 9. Be3 {[%clk 0:02:30.6]} 9... Be6 {[%clk
0:03:03.2]} 10. Kh1 {[%clk 0:02:30.1]} 10... Nc6 {[%clk 0:02:55.9]} 11. f4
{[%clk 0:02:27.9]} 11... exf4 {[%clk 0:02:55.8]} 12. Bxf4 {[%clk 0:02:28.2]}
12... d5 {[%clk 0:02:56.9]} 13. exd5 {[%clk 0:02:27.5]} 13... Nxd5 {[%clk
0:02:57.4]} 14. Nxd5 {[%clk 0:02:28.4]} 14... Bxd5 {[%clk 0:02:58.6]} 15. Bf3
{[%clk 0:02:29.6]} 15... Bxf3 {[%clk 0:02:55.7]} 16. Qxf3 {[%clk 0:02:30]} 16...
Bf6 {[%clk 0:02:55.5]} 17. c3 {[%clk 0:02:29.9]} 17... Qb6 {[%clk 0:02:53.8]}
18. Qg3 {[%clk 0:02:24]} 18... Kh8 {[%clk 0:02:38.3]} 19. Rad1 {[%clk
0:02:13.7]} 19... a5 {[%clk 0:02:31]} 20. Bc7 {[%clk 0:02:14.5]} 20... Qb5
{[%clk 0:02:30.2]} 21. Rf2 {[%clk 0:01:10.9]} 21... a4 {[%clk 0:02:28.9]} 22.
Nd4 {[%clk 0:01:11.7]} 22... Nxd4 {[%clk 0:02:27.7]} 23. cxd4 {[%clk 0:01:13.6]}
23... Rfe8 {[%clk 0:02:20.7]} 24. Rdf1 {[%clk 0:01:00.1]} 24... Ra6 {[%clk
0:02:13.3]} 25. h3 {[%clk 0:00:52.5]} 25... Rae6 {[%clk 0:02:07.2]} 26. Be5
{[%clk 0:00:51]} 26... Bxe5 {[%clk 0:01:57.1]} 27. dxe5 {[%clk 0:00:51.5]} 27...
Rg6 {[%clk 0:01:58]} 28. Qc3 {[%clk 0:00:39.9]} 28... Qd5 {[%clk 0:01:52.5]} 29.
Qf3 {[%clk 0:00:28]} 29... Qxa2 {[%clk 0:01:16.8]} 30. Qxb7 {[%clk 0:00:16.1]}
30... h6 {[%clk 0:01:09.9]} 31. Rxf7 {[%clk 0:00:16.3]} 31... Kh7 {[%clk
0:00:51.6]} 32. Qe4 {[%clk 0:00:14.2]} 32... Qxb2 {[%clk 0:00:45.8]} 33. R1f6
{[%clk 0:00:09.4]} 33... Qa1+ {[%clk 0:00:37.8]} 34. Kh2 {[%clk 0:00:09.8]}
34... Qxe5+ {[%clk 0:00:38.6]} 35. Qxe5 {[%clk 0:00:07.7]} 35... Rxe5 {[%clk
0:00:39.4]} 36. Rxg6 {[%clk 0:00:09.2]} 36... Kxg6 {[%clk 0:00:39.8]} 37. Ra7
{[%clk 0:00:11.1]} 37... Re4 {[%clk 0:00:41]} 38. Kg3 {[%clk 0:00:12.4]} 38...
Rb4 {[%clk 0:00:42]} 39. Kf3 {[%clk 0:00:13.2]} 39... Rb3+ {[%clk 0:00:41.7]}
40. Kf4 {[%clk 0:00:10.7]} 40... a3 {[%clk 0:00:42.5]} 41. Ra6+ {[%clk
0:00:10.9]} 41... Kf7 {[%clk 0:00:39.5]} 42. h4 {[%clk 0:00:10.8]} 42... h5
{[%clk 0:00:37]} 43. g4 {[%clk 0:00:11]} 43... Rb4+ {[%clk 0:00:36.3]} 44. Kf5
{[%clk 0:00:11.1]} 44... Rxg4 {[%clk 0:00:33.9]} 45. Ra7+ {[%clk 0:00:08.3]}
45... Kg8 {[%clk 0:00:33.8]} 46. Rxa3 {[%clk 0:00:09.7]} 46... Kh7 {[%clk
0:00:30.9]} 47. Rh3 {[%clk 0:00:09.4]} 47... Rb4 {[%clk 0:00:29.7]} 48. Kg5
{[%clk 0:00:09]} 48... Rb5+ {[%clk 0:00:30]} 49. Kf4 {[%clk 0:00:10.1]} 49...
Kh6 {[%clk 0:00:30.4]} 50. Rh2 {[%clk 0:00:10]} 50... Rb4+ {[%clk 0:00:31.2]}
51. Kf5 {[%clk 0:00:10.9]} 51... g6+ {[%clk 0:00:31.7]} 52. Kf6 {[%clk
0:00:11.1]} 52... Rf4+ {[%clk 0:00:31.5]} 53. Ke5 {[%clk 0:00:11.3]} 53... Ra4
{[%clk 0:00:28.2]} 54. Kf6 {[%clk 0:00:11.7]} 54... Rb4 {[%clk 0:00:25.8]} 55.
Ke5 {[%clk 0:00:12.6]} 55... Kg7 {[%clk 0:00:25.4]} 56. Rh3 {[%clk 0:00:11.6]}
56... Rg4 {[%clk 0:00:23.6]} 57. Rh2 {[%clk 0:00:11.3]} 57... Kh6 {[%clk
0:00:21.4]} 58. Kf6 {[%clk 0:00:06.8]} 58... Rf4+ {[%clk 0:00:20.7]} 59. Ke5
{[%clk 0:00:07.4]} 59... Rb4 {[%clk 0:00:18.1]} 60. Kf6 {[%clk 0:00:08.3]} 60...
Re4 {[%clk 0:00:15]} 61. Rh3 {[%clk 0:00:08.2]} 61... Rf4+ {[%clk 0:00:15.1]}
62. Ke5 {[%clk 0:00:08.8]} 62... Rf8 {[%clk 0:00:12.7]} 63. Rh2 {[%clk
0:00:09.2]} 63... Rf1 {[%clk 0:00:09.3]} 64. Rh3 {[%clk 0:00:09.4]} 64... g5
{[%clk 0:00:09.4]} 65. hxg5+ {[%clk 0:00:08.3]} 65... Kxg5 {[%clk 0:00:10.5]}
66. Ke4 {[%clk 0:00:05]} 66... h4 {[%clk 0:00:11]} 67. Ke3 {[%clk 0:00:05.6]}
67... Kg4 {[%clk 0:00:12.3]} 68. Rh2 {[%clk 0:00:04.3]} 68... h3 {[%clk
0:00:12.9]} 0-1

[Event "*** Titled Tuesday 3|2 Blitz"]
[Site "Chess.com"]
[Date "2016.06.07"]
[Round "5"]
[White "Fibrinogen"]
[Black "Grootneus"]
[Result "0-1"]
[WhiteElo "2282"]
[BlackElo "2100"]
[TimeControl "180+2"]
[EndTime "12:04:59 PDT"]
[Termination "Grootneus won by resignation"]

1. e4 {[%clk 0:03:01.9]} 1... c5 {[%clk 0:02:58.8]} 2. Nf3 {[%clk 0:03:02.9]}
2... Nc6 {[%clk 0:03:00.4]} 3. Bb5 {[%clk 0:03:02.1]} 3... e6 {[%clk 0:03:01.3]}
4. O-O {[%clk 0:03:00.9]} 4... Nge7 {[%clk 0:03:01.6]} 5. Re1 {[%clk 0:03:02.4]}
5... Nd4 {[%clk 0:02:58.3]} 6. Nxd4 {[%clk 0:03:01.7]} 6... cxd4 {[%clk
0:02:59.3]} 7. b3 {[%clk 0:03:02.2]} 7... a6 {[%clk 0:02:59.1]} 8. Bf1 {[%clk
0:03:02.8]} 8... e5 {[%clk 0:02:54.6]} 9. Bb2 {[%clk 0:03:03.5]} 9... d6 {[%clk
0:02:55.7]} 10. c3 {[%clk 0:03:04.6]} 10... dxc3 {[%clk 0:02:56.4]} 11. Nxc3
{[%clk 0:03:06.5]} 11... g6 {[%clk 0:02:57.3]} 12. d4 {[%clk 0:03:07.4]} 12...
Bg7 {[%clk 0:02:52.3]} 13. dxe5 {[%clk 0:03:08]} 13... Bxe5 {[%clk 0:02:53]} 14.
Na4 {[%clk 0:03:03.9]} 14... O-O {[%clk 0:02:51.8]} 15. Bxe5 {[%clk 0:03:03.8]}
15... dxe5 {[%clk 0:02:53.7]} 16. Qxd8 {[%clk 0:02:56.7]} 16... Rxd8 {[%clk
0:02:55.6]} 17. Nb6 {[%clk 0:02:58.2]} 17... Rb8 {[%clk 0:02:56.5]} 18. Rac1
{[%clk 0:02:59.6]} 18... Nc6 {[%clk 0:02:51.4]} 19. g3 {[%clk 0:02:46.2]} 19...
Be6 {[%clk 0:02:50.8]} 20. Bxa6 {[%clk 0:02:46.4]} 20... Nb4 {[%clk 0:02:17.9]}
21. Bf1 {[%clk 0:02:33.8]} 21... Nxa2 {[%clk 0:02:17.8]} 22. Rc7 {[%clk
0:02:31.7]} 22... Bxb3 {[%clk 0:02:11.7]} 23. Ra1 {[%clk 0:02:27.9]} 23... Be6
{[%clk 0:02:09.3]} 24. Bc4 {[%clk 0:02:25.4]} 24... Bxc4 {[%clk 0:02:06]} 25.
Nxc4 {[%clk 0:02:25.3]} 25... Nc3 {[%clk 0:02:06.8]} 26. Nxe5 {[%clk 0:02:25.1]}
26... Nxe4 {[%clk 0:02:07.1]} 27. Nxf7 {[%clk 0:02:19]} 27... Rdc8 {[%clk
0:01:46.3]} 28. Nh6+ {[%clk 0:02:16.8]} 28... Kh8 {[%clk 0:01:46.6]} 29. Re7
{[%clk 0:02:16.2]} 29... Re8 {[%clk 0:01:40.5]} 30. Rc7 {[%clk 0:02:01.9]} 30...
Rec8 {[%clk 0:01:32]} 31. Rac1 {[%clk 0:02:00.9]} 31... Rxc7 {[%clk 0:01:27]}
32. Rxc7 {[%clk 0:02:02.8]} 32... Ng5 {[%clk 0:01:28.6]} 33. Ng4 {[%clk
0:02:02.3]} 33... b5 {[%clk 0:01:24.8]} 34. h4 {[%clk 0:02:02.9]} 34... Ne6
{[%clk 0:01:24.4]} 35. Re7 {[%clk 0:02:03.6]} 35... Ng7 {[%clk 0:01:24.7]} 36.
Re3 {[%clk 0:01:53.1]} 36... b4 {[%clk 0:01:22.1]} 37. Rb3 {[%clk 0:01:54.1]}
37... Nf5 {[%clk 0:01:23.5]} 38. Ne3 {[%clk 0:01:51]} 38... Nd4 {[%clk
0:01:24.1]} 39. Rb2 {[%clk 0:01:52]} 39... Ne6 {[%clk 0:01:15.9]} 40. Kf1 {[%clk
0:01:44.3]} 40... Nc5 {[%clk 0:01:14.9]} 41. Ke2 {[%clk 0:01:41.8]} 41... Na4
{[%clk 0:01:10.8]} 42. Rb3 {[%clk 0:01:40.9]} 42... Nc5 {[%clk 0:01:11.8]} 43.
Rb1 {[%clk 0:01:39.2]} 43... Kg7 {[%clk 0:01:11.5]} 44. f3 {[%clk 0:01:32.8]}
44... Kf7 {[%clk 0:01:10.2]} 45. Kd2 {[%clk 0:01:31.8]} 45... Ke6 {[%clk
0:01:08.9]} 46. Nc2 {[%clk 0:01:31.4]} 46... Rd8+ {[%clk 0:00:56.5]} 47. Ke2
{[%clk 0:01:31.1]} 47... b3 {[%clk 0:00:57.8]} 48. Na1 {[%clk 0:01:31.8]} 48...
Rb8 {[%clk 0:00:50.6]} 49. Kd2 {[%clk 0:01:30.5]} 49... Kd5 {[%clk 0:00:46.8]}
50. Kc3 {[%clk 0:01:30.1]} 50... Na4+ {[%clk 0:00:43.7]} 51. Kd3 {[%clk
0:01:30]} 51... Nc5+ {[%clk 0:00:44.1]} 52. Kc3 {[%clk 0:01:28.3]} 52... Na4+
{[%clk 0:00:36]} 53. Kd3 {[%clk 0:01:08.7]} 53... Rb4 {[%clk 0:00:29.2]} 54. f4
{[%clk 0:00:44.7]} 54... Rd4+ {[%clk 0:00:29.3]} 55. Ke3 {[%clk 0:00:43.1]}
55... b2 {[%clk 0:00:21]} 56. Nc2 {[%clk 0:00:42]} 56... Rc4 {[%clk 0:00:20.9]}
57. Kd3 {[%clk 0:00:39.7]} 57... Rc8 {[%clk 0:00:14.2]} 58. Ne3+ {[%clk
0:00:40.1]} 58... Kc5 {[%clk 0:00:13.1]} 59. Nd1 {[%clk 0:00:40.6]} 59... Rb8
{[%clk 0:00:11.3]} 60. Kc2 {[%clk 0:00:41.6]} 60... Kd4 {[%clk 0:00:07.9]} 61.
g4 {[%clk 0:00:42.7]} 61... Ke4 {[%clk 0:00:08.3]} 62. f5 {[%clk 0:00:41.7]}
62... gxf5 {[%clk 0:00:08.9]} 63. gxf5 {[%clk 0:00:43.6]} 63... Kxf5 {[%clk
0:00:10.1]} 64. Kd2 {[%clk 0:00:45]} 64... Kg4 {[%clk 0:00:10]} 65. Ke3 {[%clk
0:00:46.2]} 65... Kxh4 {[%clk 0:00:10.5]} 66. Kf4 {[%clk 0:00:47.6]} 66... Rb4+
{[%clk 0:00:10.3]} 67. Kf3 {[%clk 0:00:48.9]} 67... Kg5 {[%clk 0:00:11.4]} 68.
Kg3 {[%clk 0:00:49.9]} 68... h5 {[%clk 0:00:12.7]} 69. Kh3 {[%clk 0:00:49.5]}
69... h4 {[%clk 0:00:13.4]} 70. Kh2 {[%clk 0:00:50.4]} 70... Kg4 {[%clk
0:00:14.2]} 71. Nf2+ {[%clk 0:00:50.3]} 71... Kf3 {[%clk 0:00:14.3]} 72. Nd3
{[%clk 0:00:51]} 72... Rb5 {[%clk 0:00:12.8]} 73. Kg1 {[%clk 0:00:49.2]} 73...
Ke3 {[%clk 0:00:13.7]} 74. Nxb2 {[%clk 0:00:49.9]} 74... Rxb2 {[%clk 0:00:12]}
75. Ra1 {[%clk 0:00:50.5]} 75... Nc3 {[%clk 0:00:11.3]} 76. Ra3 {[%clk
0:00:51.5]} 76... Rc2 {[%clk 0:00:12]} 77. Rb3 {[%clk 0:00:52.2]} 77... Kf4
{[%clk 0:00:12.3]} 78. Rb4+ {[%clk 0:00:53.3]} 78... Ne4 {[%clk 0:00:13.3]} 79.
Rb1 {[%clk 0:00:53.4]} 79... Re2 {[%clk 0:00:13]} 80. Rf1+ {[%clk 0:00:52.5]}
80... Kg3 {[%clk 0:00:12.1]} 81. Rd1 {[%clk 0:00:53.1]} 81... Re3 {[%clk
0:00:10.3]} 82. Rb1 {[%clk 0:00:51.3]} 82... h3 {[%clk 0:00:11.3]} 83. Rf1
{[%clk 0:00:52.3]} 83... Nd2 {[%clk 0:00:03.6]} 84. Rd1 {[%clk 0:00:50]} 84...
Nf3+ {[%clk 0:00:04.7]} 85. Kh1 {[%clk 0:00:51.2]} 85... Re1+ {[%clk 0:00:05.6]}
86. Rxe1 {[%clk 0:00:52.1]} 86... Nxe1 {[%clk 0:00:07.5]} 87. Kg1 {[%clk
0:00:53.8]} 87... Nd3 {[%clk 0:00:08.5]} 88. Kh1 {[%clk 0:00:55.3]} 88... Nf2+
{[%clk 0:00:09.8]} 89. Kg1 {[%clk 0:00:57.2]} 89... h2+ {[%clk 0:00:11.6]} 90.
Kf1 {[%clk 0:00:59.1]} 90... h1=Q+ {[%clk 0:00:13.5]} 91. Ke2 {[%clk 0:01:01]}
0-1

[Event "*** Titled Tuesday 3|2 Blitz"]
[Site "Chess.com"]
[Date "2016.06.07"]
[Round "5"]
[White "DrHolmes13"]
[Black "Penguininja"]
[Result "1/2-1/2"]
[WhiteElo "2374"]
[BlackElo "2231"]
[TimeControl "180+2"]
[EndTime "12:05:11 PDT"]
[Termination "Game drawn by agreement"]

1. Nf3 {[%clk 0:03:01.9]} 1... d5 {[%clk 0:02:58.9]} 2. d4 {[%clk 0:03:02.7]}
2... Nf6 {[%clk 0:02:59.8]} 3. c4 {[%clk 0:03:04.3]} 3... c6 {[%clk 0:03:01.3]}
4. Qb3 {[%clk 0:03:05.4]} 4... dxc4 {[%clk 0:02:48.9]} 5. Qxc4 {[%clk
0:03:07.3]} 5... g6 {[%clk 0:02:46.4]} 6. Nc3 {[%clk 0:03:05.7]} 6... Bg7 {[%clk
0:02:47.4]} 7. e4 {[%clk 0:03:06.8]} 7... O-O {[%clk 0:02:39.3]} 8. Be2 {[%clk
0:03:05]} 8... b5 {[%clk 0:02:39.8]} 9. Qb3 {[%clk 0:03:04.6]} 9... Bb7 {[%clk
0:02:39.9]} 10. O-O {[%clk 0:03:00.8]} 10... a6 {[%clk 0:02:41]} 11. Be3 {[%clk
0:02:55.2]} 11... Nbd7 {[%clk 0:02:25.4]} 12. Rfd1 {[%clk 0:02:52.6]} 12... e6
{[%clk 0:02:26.4]} 13. h3 {[%clk 0:02:51]} 13... Qe7 {[%clk 0:02:23.3]} 14. a4
{[%clk 0:02:44.3]} 14... Rac8 {[%clk 0:02:18]} 15. Bd3 {[%clk 0:02:22.7]} 15...
b4 {[%clk 0:02:14.6]} 16. Na2 {[%clk 0:02:21.5]} 16... a5 {[%clk 0:02:13.5]} 17.
Rac1 {[%clk 0:02:11.5]} 17... c5 {[%clk 0:02:05.4]} 18. e5 {[%clk 0:02:06.7]}
18... Nd5 {[%clk 0:01:57.1]} 19. Bg5 {[%clk 0:02:07.4]} 19... f6 {[%clk
0:01:49.8]} 20. exf6 {[%clk 0:02:08.4]} 20... Bxf6 {[%clk 0:01:47.7]} 21. Bxf6
{[%clk 0:02:08.3]} 21... Qxf6 {[%clk 0:01:49.6]} 22. Bb5 {[%clk 0:02:06.8]}
22... c4 {[%clk 0:01:33.7]} 23. Rxc4 {[%clk 0:01:56.7]} 23... Rxc4 {[%clk
0:01:30.3]} 24. Qxc4 {[%clk 0:01:57.4]} 24... N7b6 {[%clk 0:00:59.2]} 25. Qc5
{[%clk 0:01:53]} 25... Nf4 {[%clk 0:00:48.8]} 26. Bf1 {[%clk 0:01:06.4]} 26...
Nxh3+ {[%clk 0:00:43.1]} 27. Kh2 {[%clk 0:01:06.3]} 27... Bxf3 {[%clk
0:00:10.5]} 28. Rd3 {[%clk 0:01:02.6]} 28... Qf4+ {[%clk 0:00:09.6]} 29. g3
{[%clk 0:00:59.7]} 29... Qh6 {[%clk 0:00:08.6]} 30. Bxh3 {[%clk 0:00:53.3]}
30... Bg4 {[%clk 0:00:08.6]} 31. Qxb6 {[%clk 0:00:52.4]} 31... Qxh3+ {[%clk
0:00:08.7]} 32. Kg1 {[%clk 0:00:53.5]} 32... Bf3 {[%clk 0:00:06.5]} 33. Rxf3
{[%clk 0:00:54.2]} 33... Rxf3 {[%clk 0:00:08.4]} 34. Qxa5 {[%clk 0:00:46.1]}
34... Rf5 {[%clk 0:00:07.2]} 35. Qa8+ {[%clk 0:00:45]} 35... Kg7 {[%clk
0:00:08.1]} 36. Nxb4 {[%clk 0:00:43.1]} 36... Rh5 {[%clk 0:00:06.7]} 37. Qg2
{[%clk 0:00:43.3]} 37... Qf5 {[%clk 0:00:04.1]} 38. Qf1 {[%clk 0:00:34.4]} 38...
Qa5 {[%clk 0:00:04.4]} 39. Nd3 {[%clk 0:00:26]} 39... Qxa4 {[%clk 0:00:04.6]}
40. Nf4 {[%clk 0:00:27.2]} 40... Rf5 {[%clk 0:00:05.5]} 41. Nxe6+ {[%clk
0:00:28]} 41... Kf7 {[%clk 0:00:06.5]} 42. Nf4 {[%clk 0:00:27.9]} 42... Qxd4
{[%clk 0:00:07.2]} 43. Qe2 {[%clk 0:00:27.7]} 43... Re5 {[%clk 0:00:07.1]} 44.
Qf3 {[%clk 0:00:27]} 44... Qe4 {[%clk 0:00:08.4]} 45. Qb3+ {[%clk 0:00:23]}
45... Kg7 {[%clk 0:00:08.4]} 46. Qc3 {[%clk 0:00:21.6]} 46... Qe1+ {[%clk
0:00:09]} 47. Qxe1 {[%clk 0:00:20.1]} 47... Rxe1+ {[%clk 0:00:10.9]} 48. Kg2
{[%clk 0:00:21.8]} 48... Rb1 {[%clk 0:00:10.4]} 49. Nd3 {[%clk 0:00:22.7]} 49...
Rd1 {[%clk 0:00:11.6]} 50. Nf4 {[%clk 0:00:23.6]} 50... Rd2 {[%clk 0:00:11.9]}
51. b3 {[%clk 0:00:24.2]} 51... Rb2 {[%clk 0:00:12.5]} 52. Ne6+ {[%clk
0:00:25.6]} 52... Kf6 {[%clk 0:00:13.1]} 53. Nc5 {[%clk 0:00:27.2]} 53... Rc2
{[%clk 0:00:11.2]} 54. Ne4+ {[%clk 0:00:25.4]} 54... Ke5 {[%clk 0:00:12.1]} 55.
Ng5 {[%clk 0:00:25.4]} 55... h5 {[%clk 0:00:11.7]} 56. Nf3+ {[%clk 0:00:23.7]}
56... Ke4 {[%clk 0:00:11.8]} 57. Ng5+ {[%clk 0:00:25.1]} 57... Kf5 {[%clk
0:00:12.9]} 58. Nf3 {[%clk 0:00:26.1]} 58... Rb2 {[%clk 0:00:14.1]} 59. Nd4+
{[%clk 0:00:27]} 59... Ke4 {[%clk 0:00:15.1]} 60. Nf3 {[%clk 0:00:24.6]} 60...
Kd5 {[%clk 0:00:12.9]} 61. Nh4 {[%clk 0:00:25.3]} 61... g5 {[%clk 0:00:13.8]}
62. Nf3 {[%clk 0:00:26.5]} 62... g4 {[%clk 0:00:14.9]} 63. Nh4 {[%clk 0:00:26]}
63... Rxb3 {[%clk 0:00:15.7]} 64. Nf5 {[%clk 0:00:27.7]} 64... Ke5 {[%clk
0:00:15.9]} 65. Ng7 {[%clk 0:00:28.7]} 65... h4 {[%clk 0:00:15.2]} 66. gxh4
{[%clk 0:00:29.5]} 66... Rh3 {[%clk 0:00:15.8]} 67. h5 {[%clk 0:00:30.8]} 67...
Kf6 {[%clk 0:00:15.5]} 68. Ne8+ {[%clk 0:00:31.9]} 68... Kg5 {[%clk 0:00:15.6]}
69. Ng7 {[%clk 0:00:32.5]} 69... Kh6 {[%clk 0:00:15.1]} 70. Nf5+ {[%clk
0:00:32.6]} 70... Kxh5 {[%clk 0:00:15.7]} 71. Ng3+ {[%clk 0:00:33]} 71... Kg5
{[%clk 0:00:17.3]} 72. Ne4+ {[%clk 0:00:34.1]} 72... Kf4 {[%clk 0:00:18.8]} 73.
Nf6 {[%clk 0:00:34.3]} 73... Rh6 {[%clk 0:00:19.2]} 74. Nd5+ {[%clk 0:00:35]}
74... Ke4 {[%clk 0:00:20.1]} 75. Nc3+ {[%clk 0:00:35.8]} 75... Kd3 {[%clk
0:00:20.5]} 76. Nd5 {[%clk 0:00:37]} 76... Ke4 {[%clk 0:00:21.5]} 77. Nc3+
{[%clk 0:00:38.1]} 77... Kf5 {[%clk 0:00:23]} 78. Ne2 {[%clk 0:00:38.5]} 78...
Rb6 {[%clk 0:00:24]} 79. Nd4+ {[%clk 0:00:39.1]} 79... Kf4 {[%clk 0:00:25.6]}
80. Ne2+ {[%clk 0:00:39.7]} 80... Kg5 {[%clk 0:00:27.1]} 81. Nd4 {[%clk
0:00:39.7]} 81... Rb4 {[%clk 0:00:26.8]} 82. Ne6+ {[%clk 0:00:40.1]} 82... Kf5
{[%clk 0:00:27.7]} 83. Ng7+ {[%clk 0:00:41.3]} 83... Kg6 {[%clk 0:00:28.4]} 84.
Ne6 {[%clk 0:00:42.3]} 84... Rb3 {[%clk 0:00:28]} 85. Nf4+ {[%clk 0:00:41.6]}
85... Kf5 {[%clk 0:00:28.8]} 86. Nd5 {[%clk 0:00:42.9]} 86... Rb2 {[%clk
0:00:24.7]} 87. Kg3 {[%clk 0:00:42.2]} 87... Ke5 {[%clk 0:00:23.6]} 88. Ne3
{[%clk 0:00:42.3]} 88... Ke4 {[%clk 0:00:19.3]} 89. Nxg4 {[%clk 0:00:42.2]}
89... Rb3+ {[%clk 0:00:18.5]} 1/2-1/2

[Event "*** Titled Tuesday 3|2 Blitz"]
[Site "Chess.com"]
[Date "2016.06.07"]
[Round "6"]
[White "iaraldinho"]
[Black "josiwales"]
[Result "1-0"]
[WhiteElo "2452"]
[BlackElo "2119"]
[TimeControl "180+2"]
[EndTime "12:12:02 PDT"]
[Termination "iaraldinho won by resignation"]

1. e4 {[%clk 0:02:56.9]} 1... c5 {[%clk 0:02:59.5]} 2. Nf3 {[%clk 0:02:57.6]}
2... d6 {[%clk 0:03:00.3]} 3. d4 {[%clk 0:02:59.1]} 3... cxd4 {[%clk 0:03:01.5]}
4. Nxd4 {[%clk 0:03:01]} 4... Nf6 {[%clk 0:03:02.9]} 5. Nc3 {[%clk 0:03:02.7]}
5... g6 {[%clk 0:03:04.2]} 6. Be2 {[%clk 0:03:03.3]} 6... Bg7 {[%clk 0:03:04.6]}
7. Be3 {[%clk 0:03:05.2]} 7... a6 {[%clk 0:03:03.7]} 8. O-O {[%clk 0:03:07.1]}
8... Nbd7 {[%clk 0:03:03.6]} 9. Kh1 {[%clk 0:03:06.7]} 9... b5 {[%clk
0:03:02.9]} 10. f4 {[%clk 0:03:06.4]} 10... Bb7 {[%clk 0:03:03.3]} 11. Bf3
{[%clk 0:03:05.7]} 11... b4 {[%clk 0:03:02.5]} 12. Nd5 {[%clk 0:03:06.5]} 12...
Nxd5 {[%clk 0:03:02]} 13. exd5 {[%clk 0:03:07.3]} 13... Nc5 {[%clk 0:02:59.4]}
14. Nc6 {[%clk 0:03:06.3]} 14... Qc7 {[%clk 0:02:57]} 15. Bd4 {[%clk 0:03:06.4]}
15... O-O {[%clk 0:02:54.7]} 16. Bxg7 {[%clk 0:03:06.8]} 16... Kxg7 {[%clk
0:02:56.6]} 17. Qd4+ {[%clk 0:03:08.1]} 17... f6 {[%clk 0:02:57]} 18. Rae1
{[%clk 0:03:07.5]} 18... Bxc6 {[%clk 0:02:57]} 19. dxc6 {[%clk 0:03:08.5]} 19...
Rae8 {[%clk 0:02:51.4]} 20. Qxb4 {[%clk 0:03:08]} 20... e5 {[%clk 0:02:51.2]}
21. Bd5 {[%clk 0:03:01.6]} 21... Rb8 {[%clk 0:02:42]} 22. Qa3 {[%clk 0:02:55.9]}
22... exf4 {[%clk 0:02:38.3]} 23. b4 {[%clk 0:02:55.6]} 23... Rb5 {[%clk
0:02:13.7]} 24. bxc5 {[%clk 0:02:47.5]} 24... Rxc5 {[%clk 0:02:15.6]} 25. c4
{[%clk 0:02:42.8]} 25... a5 {[%clk 0:02:09.8]} 26. Qb3 {[%clk 0:02:33.5]} 26...
Rb8 {[%clk 0:02:08.8]} 27. Qf3 {[%clk 0:02:32.7]} 27... g5 {[%clk 0:02:04.1]}
28. Qe4 {[%clk 0:02:32.2]} 28... Rb2 {[%clk 0:01:54.1]} 29. h3 {[%clk
0:02:30.9]} 29... Rxa2 {[%clk 0:01:52.6]} 30. Qe8 {[%clk 0:02:31.7]} 30... Kh6
{[%clk 0:01:48.1]} 31. Re7 {[%clk 0:02:30.2]} 31... Qb6 {[%clk 0:01:48.9]} 32.
Qf8+ {[%clk 0:02:30.3]} 32... Kh5 {[%clk 0:01:48.9]} 33. Rxh7+ {[%clk
0:02:31.2]} 33... Kg6 {[%clk 0:01:50.3]} 34. Be4+ {[%clk 0:02:29.5]} 1-0

[Event "*** Titled Tuesday 3|2 Blitz"]
[Site "Chess.com"]
[Date "2016.06.07"]
[Round "6"]
[White "Lukianoo"]
[Black "platy3"]
[Result "1-0"]
[WhiteElo "2629"]
[BlackElo "2675"]
[TimeControl "180+2"]
[EndTime "12:12:43 PDT"]
[Termination "Lukianoo won by resignation"]

1. e4 {[%clk 0:03:01.9]} 1... c5 {[%clk 0:03:00.8]} 2. b3 {[%clk 0:03:02.6]}
2... Nc6 {[%clk 0:02:59.6]} 3. Bb2 {[%clk 0:03:02.5]} 3... e5 {[%clk 0:03:00.7]}
4. Bc4 {[%clk 0:02:59]} 4... Nf6 {[%clk 0:02:58.7]} 5. d3 {[%clk 0:02:55.6]}
5... d6 {[%clk 0:02:56.2]} 6. Ne2 {[%clk 0:02:52.5]} 6... a6 {[%clk 0:02:52.2]}
7. a4 {[%clk 0:02:51.4]} 7... Rb8 {[%clk 0:02:53.1]} 8. Nbc3 {[%clk 0:02:48.8]}
8... Nd4 {[%clk 0:02:48.9]} 9. O-O {[%clk 0:02:45.6]} 9... Be7 {[%clk
0:02:44.6]} 10. h3 {[%clk 0:02:41]} 10... O-O {[%clk 0:02:38.6]} 11. f4 {[%clk
0:02:39.6]} 11... b5 {[%clk 0:02:31.3]} 12. axb5 {[%clk 0:02:38.1]} 12... axb5
{[%clk 0:02:33.2]} 13. Nxd4 {[%clk 0:02:32.4]} 13... cxd4 {[%clk 0:02:32.6]} 14.
Nxb5 {[%clk 0:02:30.9]} 14... Bd7 {[%clk 0:02:28.9]} 15. Na3 {[%clk 0:02:26.8]}
15... Qc7 {[%clk 0:02:21.2]} 16. Qf3 {[%clk 0:02:20.2]} 16... Qc5 {[%clk
0:02:12.6]} 17. fxe5 {[%clk 0:02:12.4]} 17... dxe5 {[%clk 0:02:13.1]} 18. Bd5
{[%clk 0:02:08.4]} 18... Nxd5 {[%clk 0:01:46.4]} 19. exd5 {[%clk 0:02:10.3]}
19... Bg5 {[%clk 0:01:23.3]} 20. Nc4 {[%clk 0:02:07]} 20... Qc7 {[%clk
0:01:11.4]} 21. Ba3 {[%clk 0:02:04.5]} 21... f6 {[%clk 0:01:10.8]} 22. Bxf8
{[%clk 0:02:00.5]} 22... Rxf8 {[%clk 0:01:12.7]} 23. d6 {[%clk 0:01:56]} 23...
Qc5 {[%clk 0:01:13.2]} 24. Ra5 {[%clk 0:01:52.3]} 24... Qb4 {[%clk 0:01:12.4]}
25. Rxe5 {[%clk 0:01:46.8]} 1-0

[Event "*** Titled Tuesday 3|2 Blitz"]
[Site "Chess.com"]
[Date "2016.06.07"]
[Round "6"]
[White "jup1978"]
[Black "playerzr"]
[Result "0-1"]
[WhiteElo "2186"]
[BlackElo "2021"]
[TimeControl "180+2"]
[EndTime "12:13:09 PDT"]
[Termination "playerzr won by resignation"]

1. e4 {[%clk 0:03:01.9]} 1... c5 {[%clk 0:02:59.9]} 2. Nf3 {[%clk 0:03:00.2]}
2... Nc6 {[%clk 0:03:00]} 3. Bb5 {[%clk 0:02:59.9]} 3... e6 {[%clk 0:03:00.1]}
4. Bxc6 {[%clk 0:02:59.3]} 4... bxc6 {[%clk 0:02:59.2]} 5. O-O {[%clk
0:02:59.6]} 5... d5 {[%clk 0:02:59.2]} 6. d3 {[%clk 0:02:57.8]} 6... Ne7 {[%clk
0:02:33.3]} 7. c4 {[%clk 0:02:57.1]} 7... Ng6 {[%clk 0:02:30.1]} 8. Nc3 {[%clk
0:02:53.8]} 8... Be7 {[%clk 0:02:12.7]} 9. Na4 {[%clk 0:02:45.2]} 9... O-O
{[%clk 0:02:09.1]} 10. b3 {[%clk 0:02:44.5]} 10... Qa5 {[%clk 0:01:32.8]} 11.
Qe1 {[%clk 0:02:38.9]} 11... Qc7 {[%clk 0:01:19.1]} 12. Ba3 {[%clk 0:02:38.1]}
12... Nf4 {[%clk 0:01:15.8]} 13. Qe3 {[%clk 0:02:36.1]} 13... d4 {[%clk
0:00:35.6]} 14. Qd2 {[%clk 0:02:30.9]} 14... e5 {[%clk 0:00:31.7]} 15. Bxc5
{[%clk 0:02:13.1]} 15... Bxc5 {[%clk 0:00:30.9]} 16. Nxc5 {[%clk 0:02:15]} 16...
Qe7 {[%clk 0:00:31.6]} 17. Na4 {[%clk 0:02:14]} 17... Bg4 {[%clk 0:00:31.6]} 18.
Nxd4 {[%clk 0:02:13.9]} 18... Qg5 {[%clk 0:00:30.3]} 19. Qe3 {[%clk 0:01:52.2]}
19... exd4 {[%clk 0:00:28.7]} 20. Qc1 {[%clk 0:01:52.5]} 20... Bf3 {[%clk
0:00:23.7]} 0-1